[Event "European Online Club-ch-F 2021"]
[Site "Online"]
[Date "2021.03.27"]
[Round "1.3"]
[White "Van Wely, Loek"]
[Black "Graeffe, Petri"]
[Result "1-0"]
[ECO "D33"]
[WhiteElo "2620"]
[BlackElo "2043"]
[Annotator "ChessBase"]
[PlyCount "89"]
[EventDate "2021.03.27"]
[EventType "team-tourn"]
[EventCountry "NET"]
[SourceTitle "playchess.com"]
[Source "ChessBase"]
[SourceQuality "1"]
[TimeControl "900+5"]

1. d4 {[%emt 0:00:00]} d5 {[%emt 0:00:05]} 2. c4 {[%emt 0:00:02]} e6 {[%emt 0:00:04]} 3. Nf3 {[%emt 0:00:02]} c5 {[%emt 0:00:02]} 4. cxd5 {[%emt 0:00:05]} exd5 {[%emt 0:00:07]} 5. Nc3 {[%emt 0:00:05]} Nc6 {[%emt 0:00:04]} 6. g3 {[%emt 0:00:02]} Nf6 {[%emt 0:00:04]} 7. Bg2 {[%emt 0:00:02]} cxd4 {[%emt 0:00:10]} 8. Nxd4 {[%emt 0:00:03]} Bc5 {[%emt 0:00:04]} 9. Nb3 {[%emt 0:00:07]} Bb6 {[%emt 0:00:02]} 10. O-O {[%emt 0:00:04]} d4 {[%emt 0:00:08]} 11. Na4 {[%emt 0:00:03]} O-O {[%emt 0:00:04]} 12. Nxb6 {[%emt 0:01:33]} axb6 {[%emt 0:00:05]} 13. Bxc6 {[%emt 0:01:44]} bxc6 {[%emt 0:00:04]} 14. Qxd4 {[%emt 0:00:02]} Be6 {[%emt 0:00:21]} 15. Bg5 {[%emt 0:00:30]} Bxb3 {[%emt 0:02:18]} 16. Qxd8 {[%emt 0:00:05]} Rfxd8 {[%emt 0:00:16]} 17. axb3 {[%emt 0:00:04]} h6 {[%emt 0:03:18]} 18. Bxf6 {[%emt 0:00:30]} gxf6 {[%emt 0:00:03]} 19. Rxa8 {[%emt 0:01:27]} Rxa8 {[%emt 0:00:04]} 20. Rd1 {[%emt 0:00:37]} Ra2 {[%emt 0:00:30]} 21. Rd6 {[%emt 0:00:39]} Rxb2 {[%emt 0:00:26]} 22. Rxc6 {[%emt 0:02:32]} Rxb3 {[%emt 0:00:08]} 23. Rxf6 {[%emt 0:00:03]} Kg7 {[%emt 0:00:02]} 24. Rc6 {[%emt 0:00:10]} Rb2 {[%emt 0:00:06]} 25. e3 {[%emt 0:00:09]} b5 {[%emt 0:00:22]} 26. g4 {[%emt 0:00:12]} Rb4 {[%emt 0:00:08]} 27. h3 {[%emt 0:00:04]} Rb2 {[%emt 0:00:03]} 28. Rb6 {[%emt 0:00:11]} Rb4 {[%emt 0:00:05]} 29. Kg2 {[%emt 0:00:03]} Rb2 {[%emt 0:00:02]} 30. Kg3 {[%emt 0:00:09]} Rb3 {[%emt 0:00:10]} 31. Kf4 {[%emt 0:00:17]} b4 {[%emt 0:00:09]} 32. h4 {[%emt 0:00:13]} Rb2 {[%emt 0:00:04]} 33. f3 {[%emt 0:00:57]} Rb1 {[%emt 0:00:11]} 34. e4 {[%emt 0:00:08]} b3 {[%emt 0:00:50]} 35. Kf5 {[%emt 0:00:03]} b2 {[%emt 0:01:08]} 36. f4 {[%emt 0:00:03]} Rh1 {[%emt 0:00:47]} 37. Rxb2 {[%emt 0:00:07]} Rxh4 {[%emt 0:00:01]} 38. e5 {[%emt 0:00:17]} Rh1 {[%emt 0:01:13]} 39. Rb7 {[%emt 0:00:08]} Re1 {[%emt 0:00:05]} 40. Re7 {[%emt 0:00:03]} Kg8 {[%emt 0:02:31]} 41. Kf6 {[%emt 0:00:13]} Re4 {[%emt 0:00:02]} 42. f5 {[%emt 0:00:03]} Rxg4 {[%emt 0:00:10]} 43. Rxf7 {[%emt 0:00:15]} h5 {[%emt 0:00:36]} 44. e6 {[%emt 0:00:07]} h4 {[%emt 0:00:15]} 45. e7 {[%emt 0:00:08]} 1-0

[Event "European Online Club-ch-F 2021"]
[Site "Online"]
[Date "2021.03.27"]
[Round "1.4"]
[White "Puittinen, Mika"]
[Black "Hamdouchi, Hicham"]
[Result "0-1"]
[ECO "A28"]
[WhiteElo "2007"]
[BlackElo "2561"]
[Annotator "ChessBase"]
[PlyCount "54"]
[EventDate "2021.03.27"]
[EventType "team-tourn"]
[EventCountry "NET"]
[SourceTitle "playchess.com"]
[Source "ChessBase"]
[SourceQuality "1"]
[TimeControl "900+5"]

1. c4 {[%emt 0:00:00]} Nf6 {[%emt 0:00:09]} 2. Nc3 {[%emt 0:00:03]} e5 {[%emt 0:00:03]} 3. Nf3 {[%emt 0:00:04]} Nc6 {[%emt 0:00:03]} 4. a3 {[%emt 0:00:09]} g6 {[%emt 0:00:08]} 5. d4 {[%emt 0:00:05]} exd4 {[%emt 0:00:02]} 6. Nxd4 {[%emt 0:00:02]} Bg7 {[%emt 0:00:02]} 7. g3 {[%emt 0:00:07]} O-O {[%emt 0:00:05]} 8. Bg2 {[%emt 0:00:12]} Re8 {[%emt 0:00:16]} 9. Nxc6 {[%emt 0:00:35]} bxc6 {[%emt 0:00:03]} 10. O-O {[%emt 0:00:05]} a5 {[%emt 0:00:26]} 11. Re1 {[%emt 0:02:09]} Ba6 {[%emt 0:00:31]} 12. Qa4 {[%emt 0:01:00]} Ng4 {[%emt 0:00:31]} 13. Qxa5 {[%emt 0:02:29]} Ne5 {[%emt 0:02:18]} 14. Qa4 {[%emt 0:02:21]} Bxc4 {[%emt 0:00:30]} 15. Qd1 {[%emt 0:00:21]} Rb8 {[%emt 0:00:17]} 16. f4 {[%emt 0:02:44]} Bb3 {[%emt 0:01:11]} 17. Qd2 {[%emt 0:00:24]} Nc4 {[%emt 0:00:11]} 18. Qd3 {[%emt 0:00:08]} d5 {[%emt 0:00:58]} 19. e4 {[%emt 0:00:20]} dxe4 {[%emt 0:02:11]} 20. Qxd8 {[%emt 0:00:03]} Rbxd8 {[%emt 0:00:02]} 21. Rxe4 {[%emt 0:00:49]} Bd4+ {[%emt 0:01:49]} 22. Kf1 {[%emt 0:00:33]} Na5 {[%emt 0:00:50]} 23. Rxe8+ {[%emt 0:00:40]} Rxe8 {[%emt 0:00:02]} 24. Bf3 {[%emt 0:00:09]} Bc4+ {[%emt 0:00:05]} 25. Be2 {[%emt 0:00:12]} Rxe2 {[%emt 0:01:32]} 26. Nxe2 {[%emt 0:00:04]} Nb3 {[%emt 0:00:02]} 27. Rb1 {[%emt 0:00:16]} Bd3 {[%emt 0:00:01]} 0-1

[Event "European Online Club-ch-F 2021"]
[Site "Online"]
[Date "2021.03.27"]
[Round "1.5"]
[White "Kovalenko, Igor"]
[Black "Gorodetzky, Matan"]
[Result "1-0"]
[ECO "D04"]
[WhiteElo "2643"]
[BlackElo "2253"]
[Annotator "ChessBase"]
[PlyCount "193"]
[EventDate "2021.03.27"]
[EventType "team-tourn"]
[EventCountry "NET"]
[SourceTitle "playchess.com"]
[Source "ChessBase"]
[SourceQuality "1"]
[TimeControl "900+5"]

1. d4 {[%emt 0:00:00]} d5 {[%emt 0:00:05]} 2. Nf3 {[%emt 0:00:03]} c5 {[%emt 0:00:05]} 3. e3 {[%emt 0:00:03]} Nf6 {[%emt 0:00:03]} 4. dxc5 {[%emt 0:00:12]} e6 {[%emt 0:00:03]} 5. a3 {[%emt 0:00:18]} a5 {[%emt 0:00:27]} 6. b3 {[%emt 0:00:21]} Bxc5 {[%emt 0:00:04]} 7. Bb2 {[%emt 0:00:02]} O-O {[%emt 0:00:02]} 8. Nbd2 {[%emt 0:00:02]} b6 {[%emt 0:00:16]} 9. Bd3 {[%emt 0:00:14]} Ba6 {[%emt 0:00:10]} 10. O-O {[%emt 0:00:17]} Qe7 {[%emt 0:00:12]} 11. Qe2 {[%emt 0:00:24]} Bxd3 {[%emt 0:00:21]} 12. cxd3 {[%emt 0:00:02]} Nbd7 {[%emt 0:00:22]} 13. Nd4 {[%emt 0:02:36]} Rfc8 {[%emt 0:00:34]} 14. Nb5 {[%emt 0:00:03]} Qd8 {[%emt 0:00:29]} 15. Nf3 {[%emt 0:00:15]} Be7 {[%emt 0:00:28]} 16. Bd4 {[%emt 0:01:18]} Nc5 {[%emt 0:00:45]} 17. Rab1 {[%emt 0:00:04]} Qe8 {[%emt 0:00:45]} 18. a4 {[%emt 0:00:05]} Nfd7 {[%emt 0:00:06]} 19. h3 {[%emt 0:00:57]} Bf8 {[%emt 0:00:21]} 20. Ba1 {[%emt 0:00:08]} Na6 {[%emt 0:00:22]} 21. Rfd1 {[%emt 0:00:02]} Nb4 {[%emt 0:00:03]} 22. Rd2 {[%emt 0:00:03]} e5 {[%emt 0:00:24]} 23. Ne1 {[%emt 0:02:24]} f6 {[%emt 0:00:32]} 24. Qg4 {[%emt 0:00:25]} Rc6 {[%emt 0:00:22]} 25. Bb2 {[%emt 0:00:09]} Nc5 {[%emt 0:00:16]} 26. Ba3 {[%emt 0:00:40]} Ne6 {[%emt 0:00:55]} 27. Rdd1 {[%emt 0:00:22]} Qg6 {[%emt 0:00:28]} 28. Nf3 {[%emt 0:00:40]} Qxg4 {[%emt 0:00:32]} 29. hxg4 {[%emt 0:00:03]} Rc2 {[%emt 0:00:13]} 30. Ne1 {[%emt 0:00:20]} Rc6 {[%emt 0:00:29]} 31. Rd2 {[%emt 0:00:18]} g6 {[%emt 0:00:24]} 32. g3 {[%emt 0:00:05]} Bh6 {[%emt 0:00:30]} 33. Rdd1 {[%emt 0:00:35]} Na2 {[%emt 0:01:03]} 34. Kf1 {[%emt 0:00:42]} Bf8 {[%emt 0:00:30]} 35. Bb2 {[%emt 0:00:23]} Nb4 {[%emt 0:00:12]} 36. Ke2 {[%emt 0:00:39]} Rcc8 {[%emt 0:01:00]} 37. f4 {[%emt 0:00:06]} Bg7 {[%emt 0:00:20]} 38. Ba3 {[%emt 0:02:09]} Na2 {[%emt 0:00:38]} 39. Nf3 {[%emt 0:00:11]} Nc3+ {[%emt 0:01:07]} 40. Nxc3 {[%emt 0:00:03]} Rxc3 {[%emt 0:00:02]} 41. f5 {[%emt 0:00:17]} Nc5 {[%emt 0:00:22]} 42. Bxc5 {[%emt 0:00:11]} bxc5 {[%emt 0:00:07]} 43. Rdc1 {[%emt 0:00:05]} Rxc1 {[%emt 0:00:04]} 44. Rxc1 {[%emt 0:00:02]} Bf8 {[%emt 0:00:02]} 45. e4 {[%emt 0:00:03]} Rb8 {[%emt 0:00:25]} 46. Rb1 {[%emt 0:00:11]} c4 {[%emt 0:00:09]} 47. exd5 {[%emt 0:00:02]} c3 {[%emt 0:00:10]} 48. Kd1 {[%emt 0:00:05]} Rd8 {[%emt 0:00:07]} 49. Kc2 {[%emt 0:00:02]} Bb4 {[%emt 0:00:02]} 50. Re1 {[%emt 0:00:05]} Rxd5 {[%emt 0:00:02]} 51. Re4 {[%emt 0:00:02]} Rd8 {[%emt 0:00:37]} 52. Ng1 {[%emt 0:00:06]} h5 {[%emt 0:00:10]} 53. Ne2 {[%emt 0:00:11]} Rc8 {[%emt 0:00:42]} 54. fxg6 {[%emt 0:00:10]} hxg4 {[%emt 0:00:02]} 55. Rxg4 {[%emt 0:00:02]} f5 {[%emt 0:00:02]} 56. Rc4 {[%emt 0:00:02]} Rf8 {[%emt 0:00:09]} 57. Nxc3 {[%emt 0:00:03]} Kg7 {[%emt 0:00:05]} 58. Nd5 {[%emt 0:00:06]} Be1 {[%emt 0:00:08]} 59. g4 {[%emt 0:00:05]} f4 {[%emt 0:00:04]} 60. Kd1 {[%emt 0:00:02]} Bh4 {[%emt 0:00:04]} 61. Ke2 {[%emt 0:00:13]} f3+ {[%emt 0:00:02]} 62. Kf1 {[%emt 0:00:01]} Rd8 {[%emt 0:00:08]} 63. g5 {[%emt 0:00:13]} Rxd5 {[%emt 0:00:05]} 64. Rxh4 {[%emt 0:00:03]} Rxd3 {[%emt 0:00:01]} 65. Re4 {[%emt 0:00:02]} Rd5 {[%emt 0:00:06]} 66. Kf2 {[%emt 0:00:02]} Kxg6 {[%emt 0:00:05]} 67. Kxf3 {[%emt 0:00:02]} Kf5 {[%emt 0:00:17]} 68. Ke3 {[%emt 0:00:16]} Kxg5 {[%emt 0:00:04]} 69. Rc4 {[%emt 0:00:05]} Kf5 {[%emt 0:00:06]} 70. Rc8 {[%emt 0:00:04]} Rd1 {[%emt 0:00:07]} 71. Rf8+ {[%emt 0:00:02]} Ke6 {[%emt 0:00:02]} 72. Rb8 {[%emt 0:00:02]} Rb1 {[%emt 0:00:05]} 73. Rb5 {[%emt 0:00:02]} Kf5 {[%emt 0:00:06]} 74. Kd3 {[%emt 0:00:02]} Rd1+ {[%emt 0:00:09]} 75. Ke3 {[%emt 0:00:11]} Rb1 {[%emt 0:00:02]} 76. Kd2 {[%emt 0:00:03]} Kf4 {[%emt 0:00:04]} 77. Kc2 {[%emt 0:00:02]} Rh1 {[%emt 0:00:02]} 78. Rxa5 {[%emt 0:00:02]} e4 {[%emt 0:00:01]} 79. Ra8 {[%emt 0:00:02]} Rh2+ {[%emt 0:00:05]} 80. Kc3 {[%emt 0:00:02]} Rh3+ {[%emt 0:00:02]} 81. Kc4 {[%emt 0:00:03]} e3 {[%emt 0:00:02]} 82. Re8 {[%emt 0:00:08]} Kf3 {[%emt 0:00:12]} 83. a5 {[%emt 0:00:11]} e2 {[%emt 0:00:11]} 84. a6 {[%emt 0:00:05]} Rh6 {[%emt 0:00:03]} 85. Kb5 {[%emt 0:00:22]} Rh5+ {[%emt 0:00:02]} 86. Kb6 {[%emt 0:00:03]} Rh6+ {[%emt 0:00:02]} 87. Kb7 {[%emt 0:00:02]} Rh7+ {[%emt 0:00:02]} 88. Kb6 {[%emt 0:00:03]} Rh6+ {[%emt 0:00:01]} 89. Kb5 {[%emt 0:00:03]} Rh5+ {[%emt 0:00:02]} 90. Kc4 {[%emt 0:00:02]} Rh6 {[%emt 0:00:06]} 91. a7 {[%emt 0:00:06]} Ra6 {[%emt 0:00:02]} 92. Kd3 {[%emt 0:00:01]} Rd6+ {[%emt 0:00:09]} 93. Kc4 {[%emt 0:00:04]} Ra6 {[%emt 0:00:02]} 94. Kd3 {[%emt 0:00:04]} Rd6+ {[%emt 0:00:01]} 95. Kc2 {[%emt 0:00:02]} Ra6 {[%emt 0:00:03]} 96. Rf8+ {[%emt 0:00:04]} Ke3 {[%emt 0:00:05]} 97. a8=Q {[%emt 0:00:04]} 1-0

[Event "European Online Club-ch-F 2021"]
[Site "Online"]
[Date "2021.03.27"]
[Round "1.6"]
[White "Katkov, Michelle"]
[Black "Moiseenko, Alexander"]
[Result "0-1"]
[ECO "B22"]
[WhiteElo "2078"]
[BlackElo "2620"]
[Annotator "ChessBase"]
[PlyCount "64"]
[EventDate "2021.03.27"]
[EventType "team-tourn"]
[EventCountry "NET"]
[SourceTitle "playchess.com"]
[Source "ChessBase"]
[SourceQuality "1"]
[TimeControl "900+5"]

1. e4 {[%emt 0:00:00]} c5 {[%emt 0:00:03]} 2. c3 {[%emt 0:00:14]} d5 {[%emt 0:01:10]} 3. exd5 {[%emt 0:00:04]} Qxd5 {[%emt 0:00:04]} 4. d4 {[%emt 0:00:02]} Nc6 {[%emt 0:00:03]} 5. Nf3 {[%emt 0:00:02]} Bf5 {[%emt 0:00:03]} 6. Be3 {[%emt 0:00:10]} Nf6 {[%emt 0:00:09]} 7. c4 {[%emt 0:00:41]} Qd7 {[%emt 0:02:18]} 8. d5 {[%emt 0:00:22]} Nb4 {[%emt 0:00:03]} 9. Na3 {[%emt 0:00:15]} e6 {[%emt 0:00:29]} 10. Ne5 {[%emt 0:00:47]} Qc7 {[%emt 0:00:30]} 11. Qa4+ {[%emt 0:00:14]} Nd7 {[%emt 0:02:17]} 12. d6 {[%emt 0:02:11]} Bxd6 {[%emt 0:01:06]} 13. Nb5 {[%emt 0:00:09]} Nc2+ {[%emt 0:00:02]} 14. Ke2 {[%emt 0:01:09]} Bxe5 {[%emt 0:01:01]} 15. Nxc7+ {[%emt 0:00:05]} Bxc7 {[%emt 0:00:02]} 16. Rd1 {[%emt 0:00:16]} O-O-O {[%emt 0:00:31]} 17. Qxa7 {[%emt 0:00:12]} Nxe3 {[%emt 0:00:57]} 18. Kxe3 {[%emt 0:00:53]} g5 {[%emt 0:02:36]} 19. g3 {[%emt 0:00:11]} Bb6 {[%emt 0:00:31]} 20. Qa4 {[%emt 0:00:19]} Ne5 {[%emt 0:00:08]} 21. Bg2 {[%emt 0:00:20]} Kc7 {[%emt 0:00:36]} 22. Qb5 {[%emt 0:00:27]} Bd3 {[%emt 0:00:27]} 23. f4 {[%emt 0:02:28]} gxf4+ {[%emt 0:00:52]} 24. gxf4 {[%emt 0:00:21]} Nxc4+ {[%emt 0:00:23]} 25. Kf2 {[%emt 0:00:10]} Ne5 {[%emt 0:00:02]} 26. Rxd3 {[%emt 0:00:39]} Nxd3+ {[%emt 0:00:03]} 27. Kf3 {[%emt 0:00:59]} Rd4 {[%emt 0:00:03]} 28. b4 {[%emt 0:00:55]} Rxf4+ {[%emt 0:00:30]} 29. Ke2 {[%emt 0:00:26]} Rd8 {[%emt 0:00:15]} 30. Bf3 {[%emt 0:00:19]} Rxb4 {[%emt 0:00:04]} 31. Qxd3 {[%emt 0:00:20]} Rb2+ {[%emt 0:00:01]} 32. Ke3 {[%emt 0:00:11]} c4+ {[%emt 0:00:03]} 0-1

[Event "European Online Club-ch-F 2021"]
[Site "Online"]
[Date "2021.03.27"]
[Round "1.7"]
[White "Smirin, Ilia"]
[Black "Stolyarsky, Yegor"]
[Result "1-0"]
[ECO "C90"]
[WhiteElo "2614"]
[BlackElo "2063"]
[Annotator "ChessBase"]
[PlyCount "97"]
[EventDate "2021.03.27"]
[EventType "team-tourn"]
[EventCountry "NET"]
[SourceTitle "playchess.com"]
[Source "ChessBase"]
[SourceQuality "1"]
[TimeControl "900+5"]

1. e4 {[%emt 0:00:00]} e5 {[%emt 0:00:23]} 2. Nf3 {[%emt 0:00:05]} Nc6 {[%emt 0:00:21]} 3. Bb5 {[%emt 0:00:08]} a6 {[%emt 0:00:17]} 4. Ba4 {[%emt 0:00:05]} Nf6 {[%emt 0:00:08]} 5. O-O {[%emt 0:00:05]} b5 {[%emt 0:00:26]} 6. Bb3 {[%emt 0:00:05]} Be7 {[%emt 0:00:02]} 7. Re1 {[%emt 0:00:24]} d6 {[%emt 0:00:07]} 8. c3 {[%emt 0:00:05]} Na5 {[%emt 0:00:29]} 9. Bc2 {[%emt 0:00:05]} c5 {[%emt 0:00:02]} 10. d4 {[%emt 0:00:05]} exd4 {[%emt 0:00:17]} 11. cxd4 {[%emt 0:00:04]} O-O {[%emt 0:00:46]} 12. Nc3 {[%emt 0:00:41]} Bg4 {[%emt 0:00:38]} 13. d5 {[%emt 0:00:14]} Nc4 {[%emt 0:00:44]} 14. h3 {[%emt 0:00:10]} Bh5 {[%emt 0:00:08]} 15. g4 {[%emt 0:00:12]} Bg6 {[%emt 0:01:29]} 16. Nh4 {[%emt 0:00:32]} Nd7 {[%emt 0:01:21]} 17. Nxg6 {[%emt 0:00:24]} fxg6 {[%emt 0:00:00]} 18. f4 {[%emt 0:01:12]} Bf6 {[%emt 0:00:32]} 19. g5 {[%emt 0:00:30]} Bd4+ {[%emt 0:00:09]} 20. Kh1 {[%emt 0:00:19]} Qc8 {[%emt 0:01:52]} 21. Qg4 {[%emt 0:00:47]} Rf7 {[%emt 0:01:26]} 22. Rb1 {[%emt 0:03:02]} Qf8 {[%emt 0:00:22]} 23. Nd1 {[%emt 0:00:53]} Re8 {[%emt 0:01:31]} 24. Qg3 {[%emt 0:00:22]} Rfe7 {[%emt 0:01:13]} 25. b3 {[%emt 0:00:51]} Ncb6 {[%emt 0:00:04]} 26. Bd2 {[%emt 0:00:02]} Qf7 {[%emt 0:00:30]} 27. Nc3 {[%emt 0:01:09]} h6 {[%emt 0:00:58]} 28. h4 {[%emt 0:00:16]} Nf8 {[%emt 0:00:13]} 29. Qf3 {[%emt 0:00:53]} Nh7 {[%emt 0:00:12]} 30. Kg2 {[%emt 0:00:21]} Rf8 {[%emt 0:00:07]} 31. Rf1 {[%emt 0:00:16]} Nd7 {[%emt 0:00:14]} 32. Ne2 {[%emt 0:00:11]} Rfe8 {[%emt 0:00:09]} 33. b4 {[%emt 0:00:26]} Rc8 {[%emt 0:00:07]} 34. bxc5 {[%emt 0:00:05]} Bxc5 {[%emt 0:00:10]} 35. Bb3 {[%emt 0:00:10]} Nb6 {[%emt 0:00:05]} 36. e5 {[%emt 0:00:05]} Nc4 {[%emt 0:00:10]} 37. e6 {[%emt 0:00:12]} Qf5 {[%emt 0:00:06]} 38. Ng3 {[%emt 0:00:06]} Qf8 {[%emt 0:00:12]} 39. Bxc4 {[%emt 0:00:17]} bxc4 {[%emt 0:00:00]} 40. Qe4 {[%emt 0:00:04]} Qe8 {[%emt 0:00:08]} 41. Bc3 {[%emt 0:00:08]} hxg5 {[%emt 0:00:07]} 42. hxg5 {[%emt 0:00:02]} Rb8 {[%emt 0:00:07]} 43. Rxb8 {[%emt 0:00:08]} Qxb8 {[%emt 0:00:00]} 44. Qxg6 {[%emt 0:00:02]} Rb7 {[%emt 0:00:11]} 45. Nf5 {[%emt 0:00:10]} Rb2+ {[%emt 0:00:06]} 46. Kg3 {[%emt 0:00:18]} Rb7 {[%emt 0:00:06]} 47. Nh6+ {[%emt 0:00:08]} Kh8 {[%emt 0:00:04]} 48. Nf7+ {[%emt 0:00:03]} Kg8 {[%emt 0:00:01]} 49. Qxg7# {[%emt 0:00:02]} 1-0

[Event "European Online Club-ch-F 2021"]
[Site "Online"]
[Date "2021.03.27"]
[Round "1.8"]
[White "Gleizer, Adar"]
[Black "Fridman, Daniel"]
[Result "0-1"]
[ECO "B13"]
[WhiteElo "1833"]
[BlackElo "2601"]
[Annotator "ChessBase"]
[PlyCount "82"]
[EventDate "2021.03.27"]
[EventType "team-tourn"]
[EventCountry "NET"]
[SourceTitle "playchess.com"]
[Source "ChessBase"]
[SourceQuality "1"]
[TimeControl "900+5"]

1. e4 {[%emt 0:00:00]} c6 {[%emt 0:00:11]} 2. d4 {[%emt 0:00:03]} d5 {[%emt 0:00:04]} 3. exd5 {[%emt 0:00:02]} cxd5 {[%emt 0:00:02]} 4. Bd3 {[%emt 0:00:03]} Nc6 {[%emt 0:00:03]} 5. c3 {[%emt 0:00:02]} Qc7 {[%emt 0:00:02]} 6. Ne2 {[%emt 0:00:07]} Bg4 {[%emt 0:00:03]} 7. O-O {[%emt 0:00:14]} e6 {[%emt 0:00:03]} 8. Qe1 {[%emt 0:00:09]} Bd6 {[%emt 0:01:11]} 9. f3 {[%emt 0:00:32]} Bh5 {[%emt 0:00:18]} 10. Qh4 {[%emt 0:00:03]} Bg6 {[%emt 0:01:48]} 11. Bxg6 {[%emt 0:00:05]} fxg6 {[%emt 0:00:00]} 12. Nf4 {[%emt 0:00:26]} Bxf4 {[%emt 0:00:21]} 13. Bxf4 {[%emt 0:00:02]} Qb6 {[%emt 0:00:13]} 14. b3 {[%emt 0:00:37]} Nxd4 {[%emt 0:01:27]} 15. Be3 {[%emt 0:01:41]} Nf5 {[%emt 0:00:06]} 16. Bxb6 {[%emt 0:00:03]} Nxh4 {[%emt 0:00:03]} 17. Bd4 {[%emt 0:00:05]} Nf5 {[%emt 0:00:02]} 18. Re1 {[%emt 0:00:16]} Nxd4 {[%emt 0:01:22]} 19. cxd4 {[%emt 0:00:02]} Kd7 {[%emt 0:00:03]} 20. Nc3 {[%emt 0:00:42]} Ne7 {[%emt 0:00:19]} 21. Rac1 {[%emt 0:01:30]} Rac8 {[%emt 0:00:12]} 22. Nb5 {[%emt 0:00:40]} Rxc1 {[%emt 0:00:17]} 23. Rxc1 {[%emt 0:00:02]} Nc6 {[%emt 0:00:00]} 24. Rd1 {[%emt 0:00:12]} Rc8 {[%emt 0:00:04]} 25. Kf2 {[%emt 0:00:34]} Nb4 {[%emt 0:02:25]} 26. a3 {[%emt 0:02:44]} Rc2+ {[%emt 0:00:05]} 27. Ke3 {[%emt 0:00:06]} Nc6 {[%emt 0:00:02]} 28. Rg1 {[%emt 0:02:52]} a6 {[%emt 0:01:32]} 29. Kd3 {[%emt 0:00:05]} Rb2 {[%emt 0:00:02]} 30. Nc3 {[%emt 0:00:49]} Rxb3 {[%emt 0:00:11]} 31. Rd1 {[%emt 0:00:16]} Rxa3 {[%emt 0:00:11]} 32. Kc2 {[%emt 0:00:17]} b5 {[%emt 0:00:09]} 33. Kb2 {[%emt 0:00:16]} b4 {[%emt 0:00:03]} 34. Na2 {[%emt 0:00:23]} Re3 {[%emt 0:00:09]} 35. Nc1 {[%emt 0:00:05]} Na5 {[%emt 0:00:07]} 36. Nd3 {[%emt 0:00:33]} Re2+ {[%emt 0:00:04]} 37. Kb1 {[%emt 0:00:10]} Nc4 {[%emt 0:00:04]} 38. Nc5+ {[%emt 0:00:08]} Kc6 {[%emt 0:00:08]} 39. Nxa6 {[%emt 0:00:02]} b3 {[%emt 0:00:08]} 40. Nb4+ {[%emt 0:00:14]} Kb5 {[%emt 0:00:03]} 41. Nd3 {[%emt 0:00:02]} Na3+ {[%emt 0:00:03]} 0-1

[Event "European Online Club-ch-F 2021"]
[Site "Online"]
[Date "2021.03.27"]
[Round "1.9"]
[White "Agrest, Evgenij"]
[Black "Yilmazyerli, Mert"]
[Result "0-1"]
[ECO "D00"]
[WhiteElo "2568"]
[BlackElo "2413"]
[Annotator "ChessBase"]
[PlyCount "52"]
[EventDate "2021.03.27"]
[EventType "team-tourn"]
[EventCountry "NET"]
[SourceTitle "playchess.com"]
[Source "ChessBase"]
[SourceQuality "1"]
[TimeControl "900+5"]

1. d4 {[%emt 0:00:00]} Nf6 {[%emt 0:00:04]} 2. Nc3 {[%emt 0:00:03]} d5 {[%emt 0:00:04]} 3. Bf4 {[%emt 0:00:03]} a6 {[%emt 0:00:02]} 4. e3 {[%emt 0:00:05]} e6 {[%emt 0:00:03]} 5. g4 {[%emt 0:00:02]} c5 {[%emt 0:00:23]} 6. Bg2 {[%emt 0:00:18]} Nc6 {[%emt 0:00:11]} 7. g5 {[%emt 0:00:19]} Nd7 {[%emt 0:00:08]} 8. Nf3 {[%emt 0:00:10]} Be7 {[%emt 0:00:06]} 9. h4 {[%emt 0:00:46]} O-O {[%emt 0:00:02]} 10. a3 {[%emt 0:01:13]} b5 {[%emt 0:00:05]} 11. h5 {[%emt 0:00:24]} Bb7 {[%emt 0:00:46]} 12. Bh3 {[%emt 0:00:43]} cxd4 {[%emt 0:01:14]} 13. exd4 {[%emt 0:00:07]} e5 {[%emt 0:00:15]} 14. dxe5 {[%emt 0:04:18]} d4 {[%emt 0:00:08]} 15. Ne4 {[%emt 0:00:05]} Ncxe5 {[%emt 0:00:24]} 16. Nxe5 {[%emt 0:00:04]} Nxe5 {[%emt 0:00:07]} 17. Bxe5 {[%emt 0:00:08]} Bxe4 {[%emt 0:00:41]} 18. Rg1 {[%emt 0:00:04]} Re8 {[%emt 0:02:10]} 19. Qxd4 {[%emt 0:01:49]} Bxc2 {[%emt 0:00:37]} 20. Kd2 {[%emt 0:01:47]} Ba4 {[%emt 0:02:42]} 21. g6 {[%emt 0:01:39]} Bg5+ {[%emt 0:01:49]} 22. Rxg5 {[%emt 0:01:21]} Qxg5+ {[%emt 0:00:03]} 23. f4 {[%emt 0:00:02]} Qxh5 {[%emt 0:00:01]} 24. gxh7+ {[%emt 0:00:44]} Qxh7 {[%emt 0:00:05]} 25. Rg1 {[%emt 0:00:23]} Rxe5 {[%emt 0:03:26]} 26. Qxe5 {[%emt 0:00:14]} Rd8+ {[%emt 0:00:02]} 0-1